fUST/lending_fUST_20250415
["ID","MTS","AMOUNT","RATE_DAILY","PERIOD"]
[358053498,1744673440925,-20517.38053669,0.00025899,2]
[358053499,1744673440934,-100664.9922045,0.000259,2]
[358053500,1744673440947,-926.16886866,0.000259,2]
[358053516,1744673443243,-366.45182833,0.000259,2]
[358053558,1744673446221,-10521.22178418,0.000259,2]
[358053690,1744674638826,-250.0,0.000238,2]
[358053692,1744674638836,-250.0,0.000238,2]
[358053694,1744674638846,-709.63186906,0.000238,2]
[358053696,1744674638863,-500.0,0.00025773,2]
[358053698,1744674638873,-174.68285285,0.00025784,2]
[358053700,1744674638882,-2209.23569895,0.00025784,2]
[358053702,1744674638891,-207.4,0.00025785,2]
[358053704,1744674638903,-300.0,0.00025789,2]
[358053706,1744674638913,-500.0,0.00025799,2]
[358053708,1744674638924,-537.05939905,0.00025799,2]
[358053710,1744674638933,-444.47006239,0.00025799,2]
[358053712,1744674638943,-500.0,0.00025799,2]
[358053714,1744674638953,-500.0,0.00025799,2]
[358053716,1744674638962,-184.42234252,0.00025799,2]
[358053718,1744674638972,-500.0,0.00025799,2]
[358053720,1744674638982,-500.0,0.00025799,2]
[358053722,1744674638991,-500.0,0.00025799,2]
[358053724,1744674639001,-325.26231223,0.00025799,2]
[358053726,1744674639010,-500.0,0.00025799,2]
[358053728,1744674639020,-500.0,0.00025799,2]
[358053730,1744674639030,-500.0,0.00025799,2]
[358053732,1744674639039,-500.0,0.00025799,2]
[358053734,1744674639049,-500.0,0.00025799,2]
[358053736,1744674639058,-500.0,0.00025799,2]
[358053738,1744674639068,-500.0,0.00025799,2]
[358053740,1744674639077,-500.0,0.00025799,2]
[358053742,1744674639087,-500.0,0.00025799,2]
[358053744,1744674639096,-224.63122986,0.00025799,2]
[358053746,1744674639106,-500.0,0.00025799,2]
[358053748,1744674639116,-500.0,0.00025799,2]
[358053750,1744674639126,-500.0,0.00025799,2]
[358053752,1744674639135,-500.0,0.00025799,2]
[358053754,1744674639144,-500.0,0.00025799,2]
[358053756,1744674639154,-500.0,0.00025799,2]
[358053758,1744674639163,-500.0,0.00025799,2]
[358053760,1744674639173,-500.0,0.00025799,2]
[358053762,1744674639182,-10258.69026835,0.000258,2]
[358053764,1744674639193,-542.6026714,0.000258,3]
[358053766,1744674639205,-1926.37705462,0.000258,3]
[358053768,1744674639215,-746.38303543,0.000258,2]
[358053770,1744674639225,-12811.27605674,0.000258,2]
[358053772,1744674639236,-800.0,0.000258,2]
[358053913,1744674640532,-1573.8049801,0.000258,2]
[358053923,1744674640620,-760.70198306,0.000258,2]
[358053925,1744674640633,-482.02195921,0.000258,2]
[358053927,1744674640645,-2624.45810116,0.000258,2]
[358053930,1744674640658,-431.76797655,0.000258,2]
[358053932,1744674640670,-19398.269637,0.000258,2]
[358053934,1744674640682,-1601.60000003,0.000258,2]
[358053936,1744674640693,-1052.69764688,0.000258,2]
[358053939,1744674640704,-791.3323053,0.000258,2]
[358054199,1744674643356,-63985.99999975,0.000258,2]
[358054202,1744674643370,-847.92286168,0.000258,2]
[358054204,1744674643382,-644.95453371,0.000258,2]
[358054490,1744674646348,-18993.27963826,0.000258,2]
[358055608,1744675832356,-473.08791271,0.000237,2]
[358055609,1744675832366,-250.0,0.00024798,2]
[358055610,1744675832376,-2921.4711999,0.00025685,2]
[358055611,1744675832386,-207.4,0.00025685,2]
[358055612,1744675832396,-5534.27626756,0.0002569,2]
[358055613,1744675832406,-300.0,0.00025697,2]
[358055614,1744675832416,-300.0,0.00025698,2]
[358055615,1744675832428,-500.0,0.00025699,2]
[358055616,1744675832438,-500.0,0.00025699,2]
[358055617,1744675832448,-481.90393176,0.00025699,2]
[358055618,1744675832457,-500.0,0.00025699,2]
[358055619,1744675832467,-376.0530652,0.00025699,2]
[358055620,1744675832477,-500.0,0.00025699,2]
[358055621,1744675832486,-417.8545641,0.00025699,2]
[358055622,1744675832495,-210.90991437,0.00025699,2]
[358055623,1744675832504,-500.0,0.00025699,2]
[358055624,1744675832514,-500.0,0.00025699,2]
[358055625,1744675832523,-500.0,0.00025699,2]
[358055626,1744675832532,-500.0,0.00025699,2]
[358055627,1744675832541,-500.0,0.00025699,2]
[358055628,1744675832551,-500.0,0.00025699,2]
[358055629,1744675832561,-500.0,0.00025699,2]
[358055630,1744675832569,-500.0,0.00025699,2]
[358055631,1744675832579,-500.0,0.00025699,2]
[358055632,1744675832588,-499.99999999,0.00025699,2]
[358055633,1744675832597,-186.90004019,0.00025699,2]
[358055634,1744675832606,-5129.34513418,0.000257,2]
[358055635,1744675832615,-2363.95957965,0.000257,3]
[358055636,1744675832624,-17295.96982779,0.000257,2]
[358055637,1744675832640,-422.74845354,0.000257,2]
[358055658,1744675838508,-4261.67175556,0.000257,2]
[358055712,1744675840706,-5572.98454052,0.000257,2]
[358056069,1744675844482,-4524.45784964,0.000257,2]
[358056234,1744675846446,-22098.41418812,0.000257,2]
[358058427,1744677032452,-315.39194181,0.000236,2]
[358058429,1744677032462,-300.0,0.00024597,2]
[358058431,1744677032471,-300.0,0.00024597,2]
[358058433,1744677032481,-24407.8423176,0.00024598,2]
[358058434,1744677032490,-183.5765783,0.00024699,2]
[358058435,1744677032499,-2369.7528612,0.00024795,2]
[358058436,1744677032508,-599.53,0.00025,2]
[358058438,1744677032517,-2556.28729993,0.00025498,2]
[358058440,1744677032526,-500.0,0.00025573,2]
[358058442,1744677032535,-500.0,0.00025573,2]
[358058445,1744677032545,-177.23946872,0.00025573,2]
[358058448,1744677032555,-5052.45124384,0.0002559,2]
[358058450,1744677032566,-500.0,0.00025598,2]
[358058452,1744677032575,-500.0,0.00025598,2]
[358058453,1744677032584,-500.0,0.00025598,2]
[358058454,1744677032593,-500.0,0.00025598,2]
[358058456,1744677032602,-500.0,0.00025598,2]
[358058458,1744677032613,-500.0,0.00025598,2]
[358058460,1744677032622,-500.0,0.00025598,2]
[358058461,1744677032631,-500.0,0.00025598,2]
[358058462,1744677032643,-500.0,0.00025598,2]
[358058463,1744677032652,-500.0,0.00025598,2]
[358058464,1744677032661,-500.0,0.00025598,2]
[358058465,1744677032670,-500.0,0.00025598,2]
[358058466,1744677032679,-500.0,0.00025598,2]
[358058467,1744677032687,-500.0,0.00025598,2]
[358058468,1744677032696,-200.0,0.00025598,2]
[358058469,1744677032705,-500.0,0.00025598,2]
[358058470,1744677032714,-500.0,0.00025598,2]
[358058471,1744677032722,-500.0,0.00025598,2]
[358058472,1744677032731,-500.0,0.00025598,2]
[358058473,1744677032740,-500.0,0.00025598,2]
[358058474,1744677032748,-500.0,0.00025598,2]
[358058475,1744677032757,-500.0,0.00025598,2]
[358058476,1744677032766,-500.0,0.00025598,2]
[358058477,1744677032774,-500.0,0.00025598,2]
[358058478,1744677033036,-500.0,0.00025598,2]
[358058479,1744677033045,-500.0,0.00025598,2]
[358058480,1744677033055,-500.0,0.00025598,2]
[358058481,1744677033065,-500.0,0.00025598,2]
[358058482,1744677033074,-500.0,0.00025598,2]
[358058483,1744677033084,-500.0,0.00025598,2]
[358058484,1744677033093,-500.0,0.00025598,2]
[358058485,1744677033103,-500.0,0.00025598,2]
[358058486,1744677033113,-500.0,0.00025598,2]
[358058487,1744677033122,-500.0,0.00025598,2]
[358058488,1744677033131,-500.0,0.00025598,2]
[358058489,1744677033141,-500.0,0.00025598,2]
[358058490,1744677033150,-500.0,0.00025598,2]
[358058491,1744677033158,-500.0,0.00025598,2]
[358058492,1744677033168,-500.0,0.00025598,2]
[358058493,1744677033178,-500.0,0.00025598,2]
[358058494,1744677033187,-384.85162902,0.00025598,2]
[358058495,1744677033197,-500.0,0.00025598,2]
[358058496,1744677033207,-500.0,0.00025598,2]
[358058497,1744677033216,-500.0,0.00025598,2]
[358058498,1744677033225,-500.0,0.00025598,2]
[358058499,1744677033234,-300.0,0.00025598,2]
[358058500,1744677033245,-500.0,0.00025599,2]
[358058501,1744677033255,-627.50099426,0.00025599,2]
[358058502,1744677033263,-14175.8382026,0.00025599,2]
[358058503,1744677033272,-2102.20530157,0.00025599,3]
[358058504,1744677033281,-35822.05134109,0.000256,2]
[358058505,1744677033293,-2744.38444034,0.000256,2]
[358058735,1744677040945,-64186.63549772,0.000256,2]
[358059216,1744677046741,-4570.86198445,0.000256,2]
[358059218,1744677046753,-12141.14957164,0.000256,2]
[358059803,1744678232729,-210.26129454,0.000235,2]
[358059805,1744678232739,-775.7696132,0.00024775,2]
[358059807,1744678232748,-3001.76414021,0.00025,2]
[358059809,1744678232758,-300.0,0.00025472,2]
[358059811,1744678232767,-500.0,0.00025473,2]
[358059813,1744678232777,-500.0,0.00025473,2]
[358059815,1744678232786,-159.41334586,0.00025473,2]
[358059818,1744678232795,-2913.15123439,0.00025473,2]
[358059820,1744678232805,-177.23946872,0.00025473,2]
[358059822,1744678232814,-300.0,0.00025489,2]
[358059823,1744678232823,-6062.94149262,0.0002549,2]
[358059824,1744678232833,-200.84879158,0.00025499,2]
[358059825,1744678232843,-500.0,0.00025499,2]
[358059826,1744678232852,-460.80671942,0.00025499,2]
[358059827,1744678232862,-500.0,0.00025499,2]
[358059829,1744678232871,-500.0,0.00025499,2]
[358059831,1744678232881,-500.0,0.00025499,2]
[358059833,1744678232891,-500.0,0.00025499,2]
[358059835,1744678232900,-500.0,0.00025499,2]
[358059837,1744678232910,-500.0,0.00025499,2]
[358059839,1744678232920,-500.0,0.00025499,2]
[358059841,1744678232929,-295.72276129,0.00025499,2]
[358059843,1744678232942,-500.0,0.00025499,2]
[358059845,1744678232951,-500.0,0.00025499,2]
[358059847,1744678232961,-500.0,0.00025499,2]
[358059849,1744678232971,-500.0,0.00025499,2]
[358059851,1744678232980,-500.0,0.00025499,2]
[358059853,1744678232989,-500.0,0.00025499,2]
[358059855,1744678232998,-500.0,0.00025499,2]
[358059857,1744678233009,-500.0,0.00025499,2]
[358059859,1744678233018,-500.0,0.00025499,2]
[358059861,1744678233027,-500.0,0.00025499,2]
[358059863,1744678233037,-1051.10265079,0.00025499,3]
[358059865,1744678233046,-9206.5407207,0.00025499,2]
[358060071,1744678239376,-5486.67159905,0.00025499,2]
[358060072,1744678239386,-26584.9138711,0.000255,2]
[358060412,1744678244298,-2129.49859107,0.000255,2]
[358060597,1744678246834,-341285.58753783,0.000255,2]
[358060598,1744678246852,-151.0,0.00025584,2]
[358060599,1744678246868,-170.20622126,0.00025584,2]
[358060600,1744678246885,-207.4,0.00025584,2]
[358060601,1744678246900,-1010.49024877,0.00025589,2]
[358060602,1744678246913,-151.0,0.000256,7]
[358060603,1744678246927,-151.0,0.000256,7]
[358060604,1744678246945,-153.08568,0.000256,7]
[358060605,1744678246961,-418.009622,0.000256,2]
[358060606,1744678246977,-418.009622,0.000256,2]
[358060607,1744678246994,-151.0,0.000256,7]
[358060608,1744678247006,-151.0,0.000256,7]
[358060609,1744678247021,-181.356823,0.000256,7]
[358060610,1744678247039,-181.356823,0.000256,7]
[358060611,1744678247051,-291.896784,0.000256,7]
[358060612,1744678247069,-151.0,0.000256,7]
[358060613,1744678247085,-151.0,0.000256,7]
[358060614,1744678247097,-193.0,0.000256,2]
[358060615,1744678247129,-193.0,0.000256,4]
[358060616,1744678247146,-193.0,0.000256,3]
[358060617,1744678247162,-5791.14011357,0.00025612,2]
[358060618,1744678247178,-151.0,0.000257,7]
[358060619,1744678247194,-151.0,0.000257,7]
[358060620,1744678247210,-290.673375,0.000257,7]
[358060621,1744678247225,-367.224613,0.000257,7]
[358060622,1744678247240,-367.224613,0.000257,7]
[358060623,1744678247254,-500.0,0.000257,2]
[358060624,1744678247269,-151.0,0.000257,2]
[358060625,1744678247284,-160.0,0.000257,7]
[358060626,1744678247298,-12547.34863188,0.000257,7]
[358060627,1744678247312,-500.0,0.000257,2]
[358060628,1744678247326,-199.95343753,0.000257,2]
[358060629,1744678247340,-192.9224334,0.000257,2]
[358060630,1744678247353,-500.0,0.000257,2]
[358060631,1744678247368,-151.0,0.000257,2]
[358060632,1744678247381,-500.0,0.000257,2]
[358060633,1744678247395,-500.0,0.000257,2]
[358060634,1744678247408,-838.51730609,0.000257,7]
[358060635,1744678247422,-419.9901559,0.000257,7]
[358060636,1744678247436,-160.0,0.000257,7]
[358060637,1744678247449,-160.0,0.000257,7]
[358060638,1744678247463,-160.0,0.000257,7]
[358060639,1744678247476,-500.0,0.00025755,2]
[358060640,1744678247491,-151.0,0.00025755,2]
[358060641,1744678247505,-500.0,0.00025755,2]
[358060642,1744678247517,-500.0,0.00025755,2]
[358060643,1744678247531,-500.0,0.00025755,2]
[358060644,1744678247545,-500.0,0.00025755,2]
[358060645,1744678247559,-614.0,0.00025799,2]
[358060646,1744678247572,-176.69761266,0.00025799,2]
[358060647,1744678247585,-183.66314054,0.00025799,2]
[358060648,1744678247600,-151.0,0.00025799,2]
[358060649,1744678247613,-151.0,0.00025799,2]
[358060650,1744678247627,-299.17516045,0.00025799,2]
[358060651,1744678247640,-500.0,0.00025799,2]
[358060652,1744678247655,-500.0,0.00025799,2]
[358060653,1744678247669,-433.77244023,0.000258,2]
[358060654,1744678247683,-500.0,0.0002581,2]
[358060655,1744678247696,-151.0,0.0002581,2]
[358060656,1744678247709,-500.0,0.0002581,2]
[358060657,1744678247725,-500.0,0.0002581,2]
[358060658,1744678247738,-500.0,0.0002581,2]
[358060659,1744678247753,-500.0,0.0002581,2]
[358060660,1744678247767,-1010.49024877,0.00025853,2]
[358060661,1744678247780,-151.0,0.00025854,2]
[358060662,1744678247793,-208.26307929,0.00025854,2]
[358060663,1744678247807,-533.00851285,0.00025854,2]
[358060664,1744678247821,-500.0,0.00025854,2]
[358060665,1744678247834,-2876.9,0.00025854,2]
[358060666,1744678247848,-151.0,0.00025863,7]
[358060667,1744678247861,-2877.0,0.00025863,7]
[358060668,1744678247875,-2876.9,0.00025863,7]
[358060669,1744678247888,-2876.9,0.00025863,7]
[358060670,1744678247901,-151.0,0.00025863,7]
[358060671,1744678247914,-500.0,0.00025864,2]
[358060672,1744678247927,-151.0,0.00025864,2]
[358060673,1744678247943,-305.86253632,0.00025864,2]
[358060674,1744678247957,-500.0,0.00025864,2]
[358060675,1744678247970,-500.0,0.00025864,2]
[358060676,1744678247984,-584.29825537,0.00025864,2]
[358060677,1744678247999,-151.0,0.000259,7]
[358060678,1744678248013,-151.0,0.000259,7]
[358060679,1744678248029,-151.0,0.000259,7]
[358060680,1744678248044,-151.0,0.000259,7]
[358060681,1744678248057,-151.0,0.000259,7]
[358060682,1744678248071,-151.0,0.000259,7]
[358060683,1744678248084,-3822.911321,0.000259,2]
[358060684,1744678248099,-3822.911321,0.000259,2]
[358060685,1744678248115,-151.0,0.000259,7]
[358060686,1744678248128,-151.0,0.000259,7]
[358060688,1744678248143,-2014.26356995,0.000259,6]
[358060690,1744678248156,-154.41413,0.00025908,7]
[358060692,1744678248170,-154.41413,0.00025908,7]
[358060695,1744678248184,-151.0,0.00025909,2]
[358060697,1744678248199,-500.0,0.00025909,2]
[358060699,1744678248212,-151.0,0.00025918,7]
[358060700,1744678248227,-418.009622,0.00025918,2]
[358060702,1744678248242,-418.009622,0.00025918,2]
[358060703,1744678248257,-181.356823,0.00025918,7]
[358060705,1744678248271,-181.356823,0.00025918,7]
[358060706,1744678248283,-151.0,0.00025918,7]
[358060707,1744678248298,-280.676384,0.00025918,7]
[358060708,1744678248312,-151.0,0.00025918,7]
[358060709,1744678248327,-151.0,0.00025918,7]
[358060710,1744678248341,-151.0,0.00025918,7]
[358060711,1744678248355,-241.093993,0.00025918,7]
[358060712,1744678248369,-241.093993,0.00025918,7]
[358060714,1744678248382,-249.481786,0.00025918,7]
[358060716,1744678248397,-500.0,0.00025919,2]
[358060719,1744678248411,-158.33612512,0.00025919,2]
[358060720,1744678248426,-500.0,0.00025919,2]
[358060723,1744678248441,-500.0,0.00025919,2]
[358060725,1744678248456,-151.0,0.00025929,7]
[358060727,1744678248470,-1010.49024877,0.00025929,2]
[358060729,1744678248486,-151.0,0.00025939,7]
[358060731,1744678248499,-154.41413,0.00025939,7]
[358060733,1744678248513,-151.0,0.00025939,7]
[358060736,1744678248528,-154.41413,0.00025939,7]
[358060737,1744678248543,-151.0,0.00025939,7]
[358060739,1744678248556,-151.0,0.00025939,7]
[358060741,1744678248571,-151.0,0.00025939,7]
[358060742,1744678248584,-3822.911321,0.00025939,2]
[358060743,1744678248599,-3822.911321,0.00025939,2]
[358060745,1744678248613,-151.0,0.00025939,7]
[358060747,1744678248627,-151.0,0.00025939,7]
[358060748,1744678248641,-2056.671762,0.00025939,7]
[358060749,1744678248654,-2056.671762,0.00025939,7]
[358060750,1744678248669,-151.0,0.00025939,7]
[358060751,1744678248682,-151.0,0.00025939,7]
[358060752,1744678248694,-275.0,0.00025939,7]
[358060754,1744678249041,-151.0,0.00025939,7]
[358060755,1744678249081,-248.521534,0.00025939,7]
[358060756,1744678249095,-248.521534,0.00025939,7]
[358060757,1744678249105,-151.0,0.00025939,7]
[358060758,1744678249116,-10815.28998884,0.00025939,2]
[358060759,1744678249125,-151.0,0.00025953,7]
[358060760,1744678249135,-151.0,0.00025953,7]
[358060761,1744678249145,-151.0,0.00025953,7]
[358060762,1744678249154,-241.093993,0.00025953,7]
[358060763,1744678249165,-241.093993,0.00025953,7]
[358060764,1744678249174,-249.481786,0.00025953,7]
[358060765,1744678249185,-2056.671762,0.00025963,7]
[358060766,1744678249194,-2056.671762,0.00025963,7]
[358060767,1744678249204,-151.0,0.00025963,7]
[358060768,1744678249214,-151.0,0.00025963,7]
[358060769,1744678249223,-248.521534,0.00025963,7]
[358060770,1744678249246,-248.521534,0.00025963,7]
[358060771,1744678249257,-151.0,0.00025963,2]
[358060772,1744678249268,-500.0,0.00025963,2]
[358060773,1744678249279,-552.40346552,0.00025973,2]
[358060774,1744678249289,-499.31916668,0.00025973,2]
[358060775,1744678249300,-500.0,0.00025973,2]
[358060776,1744678249311,-500.0,0.00025973,2]
[358060777,1744678249322,-500.0,0.00025973,2]
[358060778,1744678249332,-500.0,0.00025973,2]
[358060779,1744678249342,-151.0,0.00025973,7]
[358060780,1744678249353,-500.0,0.00025974,2]
[358060781,1744678249365,-500.0,0.00025974,2]
[358060782,1744678249376,-500.0,0.00025974,2]
[358060783,1744678249386,-367.224613,0.0002599,7]
[358060784,1744678249397,-367.224613,0.0002599,7]
[358060785,1744678249407,-151.0,0.0002599,7]
[358060786,1744678249418,-151.0,0.0002599,7]
[358060787,1744678249429,-4629.8410866,0.0002599,2]
[358060788,1744678249988,-422.61015725,0.0002599,2]
[358060789,1744678249999,-748.239387,0.00026,2]
[358060790,1744678250018,-285.98770573,0.00026,2]
[358060791,1744678250030,-9876.16391667,0.00026,2]
[358060792,1744678250042,-3822.10913016,0.00026,2]
[358060855,1744679431789,-2593.734641,0.00024392,2]
[358060857,1744679431800,-154.0,0.00025,2]
[358060859,1744679431810,-300.0,0.00025372,2]
[358060861,1744679431820,-151.0,0.00025384,2]
[358060863,1744679431830,-1515.73537315,0.0002539,2]
[358060865,1744679431840,-300.0,0.00025398,2]
[358060867,1744679431850,-186.48427172,0.00025399,2]
[358060869,1744679431860,-500.0,0.00025399,2]
[358060871,1744679431870,-352.7017034,0.00025399,2]
[358060873,1744679431879,-500.0,0.00025399,2]
[358060875,1744679431889,-371.81108113,0.00025399,2]
[358060877,1744679431899,-500.0,0.00025399,2]
[358060879,1744679431909,-264.29,0.00025399,2]
[358060882,1744679431918,-29089.33244752,0.000254,2]
[358060884,1744679431930,-310.98131691,0.000254,2]
[358061074,1744679437949,-1624.30936521,0.000254,2]
[358061115,1744679440244,-437.99033299,0.000254,2]
[358061117,1744679440256,-701.46346679,0.000254,2]
[358061119,1744679440268,-261.546,0.000254,2]
[358061654,1744679445924,-254068.26504538,0.000254,2]
[358061655,1744679445933,-247.22338388,0.000255,2]
[358061656,1744679445944,-1000.0,0.000256,2]
[358061657,1744679445954,-4754.07681658,0.00025862,2]
[358061658,1744679445964,-151.0,0.00025863,7]
[358061659,1744679445974,-151.0,0.00025863,7]
[358061660,1744679445984,-293.779691,0.00025863,7]
[358061661,1744679445994,-293.779691,0.00025863,7]
[358061662,1744679446004,-4273.17028542,0.000259,6]
[358061663,1744679446015,-151.0,0.00025929,7]
[358061664,1744679446025,-151.0,0.00025929,7]
[358061665,1744679446035,-293.779691,0.00025929,7]
[358061666,1744679446044,-293.779691,0.00025929,7]
[358061667,1744679446054,-151.0,0.00025939,7]
[358061668,1744679446064,-151.0,0.00025939,7]
[358061669,1744679446074,-151.0,0.00025939,7]
[358061670,1744679446084,-293.779691,0.00025939,7]
[358061671,1744679446094,-293.779691,0.00025939,7]
[358061672,1744679446104,-151.0,0.00025953,7]
[358061673,1744679446114,-500.0,0.00025973,2]
[358061674,1744679446124,-500.0,0.00025973,2]
[358061675,1744679446134,-500.0,0.00025973,2]
[358061676,1744679446144,-500.39162495,0.00025973,2]
[358061677,1744679446154,-500.0,0.00025973,2]
[358061678,1744679446165,-500.0,0.00025973,7]
[358061679,1744679446175,-151.0,0.00025973,7]
[358061680,1744679446185,-301.501044,0.00025973,7]
[358061681,1744679446195,-160.0,0.00025973,7]
[358061682,1744679446205,-160.0,0.00025973,7]
[358061683,1744679446215,-500.0,0.00025973,2]
[358061684,1744679446226,-12547.34863188,0.00025973,7]
[358061685,1744679446237,-240.37342857,0.00025973,2]
[358061686,1744679446247,-838.51730609,0.00025973,7]
[358061687,1744679446256,-419.9901559,0.00025973,7]
[358061688,1744679446268,-160.0,0.00025973,7]
[358061689,1744679446279,-151.0,0.00025973,2]
[358061690,1744679446289,-500.0,0.00025973,2]
[358061691,1744679446298,-160.0,0.00025973,7]
[358061692,1744679446308,-909.44122389,0.0002599,2]
[358061693,1744679446318,-160.0,0.00025993,2]
[358061694,1744679446328,-183.66314054,0.00025999,2]
[358061695,1744679446338,-176.69761266,0.00025999,2]
[358061696,1744679446348,-85268.23730039,0.00026,2]
[358061697,1744679446358,-151.0,0.00026,7]
[358061698,1744679446373,-151.0,0.00026,7]
[358061699,1744679446383,-151.0,0.00026,7]
[358061700,1744679446393,-151.0,0.00026,7]
[358061701,1744679446403,-151.0,0.00026,7]
[358061702,1744679446414,-151.0,0.00026,7]
[358061703,1744679446424,-151.0,0.00026,7]
[358061704,1744679446435,-151.0,0.00026,7]
[358061705,1744679446445,-151.0,0.00026,7]
[358061706,1744679446455,-151.0,0.00026,7]
[358061707,1744679446466,-151.0,0.00026,7]
[358061708,1744679446476,-151.0,0.00026,7]
[358061709,1744679446486,-154.41413,0.00026,7]
[358061710,1744679446496,-151.0,0.00026,7]
[358061711,1744679446507,-151.0,0.00026,7]
[358061712,1744679446518,-151.0,0.00026,7]
[358061713,1744679446528,-151.0,0.00026,7]
[358061714,1744679446538,-151.0,0.00026,7]
[358061715,1744679446548,-151.0,0.00026,7]
[358061716,1744679446558,-151.0,0.00026,7]
[358061717,1744679446569,-151.0,0.00026,7]
[358061718,1744679446579,-151.0,0.00026,7]
[358061719,1744679446588,-151.0,0.00026,7]
[358061720,1744679446599,-151.0,0.00026,7]
[358061721,1744679446609,-151.0,0.00026,7]
[358061722,1744679446620,-151.0,0.00026,7]
[358061723,1744679446630,-151.0,0.00026,7]
[358061724,1744679447018,-197.058556,0.00026,7]
[358061725,1744679447029,-151.0,0.00026,7]
[358061726,1744679447038,-151.0,0.00026,7]
[358061727,1744679447048,-151.0,0.00026,7]
[358061728,1744679447057,-151.0,0.00026,7]
[358061729,1744679447067,-151.0,0.00026,7]
[358061730,1744679447076,-151.0,0.00026,7]
[358061731,1744679447085,-151.0,0.00026,7]
[358061732,1744679447095,-151.0,0.00026,7]
[358061733,1744679447104,-151.0,0.00026,7]
[358061734,1744679447114,-151.0,0.00026,7]
[358061735,1744679447124,-151.0,0.00026,7]
[358061736,1744679447134,-151.0,0.00026,7]
[358061737,1744679447144,-151.0,0.00026,7]
[358061738,1744679447154,-293.779691,0.00026,7]
[358061739,1744679447164,-293.779691,0.00026,7]
[358061740,1744679447174,-293.779691,0.00026,7]
[358061741,1744679447183,-293.779691,0.00026,7]
[358061742,1744679447193,-293.779691,0.00026,7]
[358061743,1744679447202,-293.779691,0.00026,7]
[358061744,1744679447211,-293.779691,0.00026,7]
[358061745,1744679447221,-293.779691,0.00026,7]
[358061746,1744679447231,-293.779691,0.00026,7]
[358061747,1744679447240,-293.779691,0.00026,7]
[358061748,1744679447250,-293.779691,0.00026,7]
[358061749,1744679447262,-293.779691,0.00026,7]
[358061750,1744679447271,-151.0,0.00026,7]
[358061751,1744679447280,-151.0,0.00026,2]
[358061752,1744679447291,-151.0,0.00026,7]
[358061753,1744679447300,-151.0,0.00026,7]
[358061754,1744679447310,-151.0,0.00026,7]
[358061755,1744679447320,-151.0,0.00026,7]
[358061756,1744679447329,-151.0,0.00026,7]
[358061757,1744679447339,-151.0,0.00026,7]
[358061758,1744679447348,-151.0,0.00026,7]
[358061759,1744679447358,-151.0,0.00026,7]
[358061760,1744679447367,-200.921611,0.00026,7]
[358061761,1744679447377,-200.921611,0.00026,7]
[358061762,1744679447386,-200.921611,0.00026,7]
[358061763,1744679447397,-200.921611,0.00026,7]
[358061764,1744679447406,-786.85159,0.00026,7]
[358061765,1744679447416,-786.85159,0.00026,7]
[358061766,1744679447425,-151.0,0.00026,7]
[358061767,1744679447435,-151.0,0.00026,7]